bitfinex-derivatives/quotes_ETHF0:USTF0_20210407
["timestamp","ask_amount","ask_price","bid_price","bid_amount"]
[1617795319011,13.6755,1972.7,1971.5,5.77285]
[1617795319209,14.6808,1972.7,1971.5,5.77285]
[1617795319410,13.6755,1972.7,1971.5,5.77285]
[1617795320912,13.6755,1972.7,1972.1,2.90695]
[1617795321111,13.6755,1972.7,1972.1,5.60215]
[1617795321711,13.16,1972.8,1972.1,5.60215]
[1617795322411,2.0,1973.9,1972.1,5.60215]
[1617795322612,2.0,1973.9,1972.1,2.6952]
[1617795322814,2.0,1973.9,1972.9,2.90695]
[1617795323013,2.0,1973.9,1972.9,2.7866]
[1617795323914,14.1659,1974.3,1972.9,2.7866]
[1617795326918,14.1659,1974.3,1973.3,2.90695]
[1617795327123,14.1659,1974.3,1973.3,5.48245]
[1617795327525,12.843,1974.9,1973.3,5.48245]
[1617795328619,12.843,1974.9,1973.3,3.90795]
[1617795328931,2.90695,1973.4,1972.9,2.90695]
[1617795329418,13.5166,1974.8,1972.9,2.90695]
[1617795329721,13.5166,1974.8,1972.9,4.93015]
[1617795330458,13.5166,1974.8,1972.9,5.95785]
[1617795330822,13.5166,1974.8,1973.7,2.90695]
[1617795331023,13.5166,1974.8,1973.7,5.32905]
[1617795331422,12.843,1974.9,1973.7,5.32905]
[1617795331686,13.8446,1974.9,1973.7,5.32905]
[1617795332001,13.8446,1974.9,1972.9,1.0277]
[1617795332524,2.0,1974.8,1972.4,79.8753]
[1617795332962,2.90695,1973.2,1972.9,2.90695]
[1617795334027,13.448,1974.8,1972.9,2.90695]
[1617795334233,1.02889204,1981.2,1972.9,5.83305]
[1617795334427,1.002,1975.9,1972.9,5.83305]
[1617795334627,1.0253,1976.9,1972.9,5.83305]
[1617795334827,1.0253,1976.9,1974.4,2.90695]
[1617795335028,30.0,1977.2,1974.4,5.40225]
[1617795335029,2.0,1977.1,1974.4,5.40225]
[1617795335228,30.0,1977.0,1974.4,2.4953]
[1617795335431,30.0,1976.8,1962.0,13.8303]
[1617795335629,13.4867,1977.3,1969.5,70.6782]
[1617795335630,30.0,1975.5,1969.5,70.6782]
[1617795335832,30.0,1975.3,1966.4,3.038]
[1617795336031,30.0,1973.2,1966.4,3.038]
[1617795336239,32.8059,1973.2,1966.5,2.0]
[1617795336432,30.0,1973.0,1966.1,70.579]
[1617795336635,30.0,1972.8,1966.1,70.579]
[1617795336834,30.0,1972.6,1966.1,70.579]
[1617795337033,2.0,1972.5,1969.0,2.90695]
[1617795337334,1.8795,1972.8,1969.1,2.0]
[1617795337537,1.8795,1972.8,1969.0,2.90695]
[1617795337936,2.8059,1973.2,1969.0,2.90695]
[1617795338134,30.0,1973.1,1969.0,2.90695]
[1617795338340,30.0,1973.1,1969.1,2.0]
[1617795338534,2.8059,1973.2,1969.0,2.90695]
[1617795339044,2.90695,1971.9,1971.7,2.90695]
[1617795339235,2.0573,1974.2,1971.7,2.90695]
[1617795339437,2.0,1974.1,1971.7,2.90695]
[1617795339637,80.3629,1974.4,1971.7,2.90695]
[1617795340238,110.3629,1974.4,1971.7,2.90695]
[1617795340440,110.3629,1974.4,1972.1,1.8793]
[1617795340639,80.3629,1974.4,1972.1,1.8822]
[1617795340855,80.3629,1974.4,1972.1,2.7511]
[1617795341069,80.3629,1974.4,1972.7,1.38172274]
[1617795341243,80.3629,1974.4,1972.7,1.90832274]
[1617795341539,80.3629,1974.4,1972.7,1.2053]
[1617795342544,13.4542,1975.1,1972.7,1.2053]
[1617795342949,2.90695,1972.8,1972.7,1.2053]
[1617795343348,13.4542,1975.1,1972.7,1.2053]
[1617795344149,2.571,1975.4,1972.7,1.2053]
[1617795345156,77.1055,1976.1,1973.4,2.90695]
[1617795345356,77.1055,1976.1,1973.4,5.86015]
[1617795346175,1.0074,1977.7,1973.4,5.86015]
[1617795346752,30.0,1977.9,1973.4,5.86015]
[1617795346951,2.0,1977.8,1973.4,5.86015]
[1617795347151,30.0,1977.7,1974.2,2.90695]
[1617795347351,30.0,1977.7,1974.2,4.86605]
[1617795347352,2.0,1977.6,1974.2,4.86605]
[1617795347551,30.0,1977.5,1974.2,4.86605]
[1617795347750,2.0,1977.4,1974.2,4.86605]
[1617795347951,30.0,1977.3,1974.2,4.86605]
[1617795349255,2.90695,1974.3,1974.2,4.86605]
[1617795349453,2.90695,1974.3,1974.2,1.9591]
[1617795349454,5e-05,1974.3,1974.2,1.9591]
[1617795349757,69.3727,1976.1,1974.2,1.9591]
[1617795350354,69.3727,1976.1,1972.7,1.2053]
[1617795350554,94.9943,1976.1,1972.0,75.6901]
[1617795351257,94.9943,1976.1,1972.5,2.90695]
[1617795351555,64.9943,1976.1,1972.5,2.90695]
[1617795352756,32.0,1976.0,1972.5,2.90695]
[1617795353157,13.0512,1975.9,1972.8,2.90695]
[1617795353957,30.0,1975.8,1972.8,2.90695]
[1617795355157,30.0,1975.8,1973.5,2.90695]
[1617795356265,30.0,1975.8,1972.3,2.0]
[1617795357163,30.0,1975.8,1973.0,2.90695]
[1617795357563,2.0,1976.0,1973.0,2.90695]
[1617795357766,94.9943,1976.1,1973.1,2.0]
[1617795357966,94.9943,1976.1,1973.0,2.90695]
[1617795358865,32.0,1976.0,1973.1,2.0]
[1617795359065,32.0,1976.0,1973.9,2.90695]
[1617795359265,2.0,1976.0,1973.9,2.90695]
[1617795359465,30.0,1975.9,1973.9,2.90695]
[1617795359665,32.0,1975.9,1973.9,2.90695]
[1617795360265,2.0,1975.9,1973.9,2.90695]
[1617795361869,2.0,1975.9,1974.0,2.0]
[1617795362168,2.0,1975.9,1973.9,5.90625]
[1617795362668,2.0,1976.0,1973.9,5.90625]
[1617795363168,2.0,1976.0,1974.3,2.90695]
[1617795363668,2.0,1976.0,1973.4,2.0]
[1617795364169,32.0,1976.0,1973.4,2.0]
[1617795364869,32.0,1976.0,1972.0,75.6901]
[1617795365068,32.0,1976.0,1972.1,2.0]
[1617795365268,32.0,1976.0,1973.3,2.90695]
[1617795365972,32.0,1976.0,1972.1,2.0]
[1617795366169,32.0,1976.0,1972.0,75.6901]
[1617795366676,32.0,1976.0,1972.0,77.6901]
[1617795367175,32.0,1976.0,1972.5,2.90695]
[1617795367375,32.0,1976.0,1972.0,75.6901]
[1617795367774,33.1,1976.0,1972.0,75.6901]
[1617795368176,33.1,1976.0,1969.7,27.4001]
[1617795368177,33.1,1976.0,1969.7,13.6956]
[1617795368377,30.0,1974.8,1969.8,2.0]
[1617795368579,30.0,1974.6,1969.8,2.0]
[1617795368778,30.0,1974.4,1969.8,2.0]
[1617795368978,30.0,1974.2,1969.8,2.0]
[1617795369184,2.7843,1974.4,1971.4,2.90695]
[1617795369479,2.7843,1974.4,1969.8,2.0]
[1617795369902,2.7843,1974.4,1969.9,2.0]
[1617795370179,30.0,1974.3,1969.9,2.0]
[1617795370380,2.0,1974.2,1969.9,2.0]
[1617795370580,30.0,1974.1,1969.9,2.0]
[1617795370780,30.0,1973.9,1969.9,2.0]
[1617795370980,30.0,1973.7,1969.9,2.0]
[1617795371187,30.0,1973.5,1970.3,2.90695]
[1617795371380,30.0,1973.3,1970.3,2.90695]
[1617795371580,3.0292,1973.5,1970.3,2.90695]
[1617795371581,30.0,1973.1,1970.3,2.90695]
[1617795371780,30.0,1972.9,1970.3,2.90695]
[1617795371980,30.0,1972.7,1969.4,2.0]
[1617795372180,30.0,1972.5,1969.4,2.0]
[1617795372506,30.0,1972.3,1967.4,66.145]
[1617795372680,2.0,1972.2,1967.4,66.145]
[1617795372879,30.0,1972.1,1967.4,66.145]
[1617795373082,30.0,1971.9,1967.5,2.0]
[1617795373281,30.0,1971.7,1969.2,2.90695]
[1617795373581,2.0,1971.6,1969.2,2.90695]
[1617795373782,3.0527,1971.9,1969.2,2.90695]
[1617795374385,2.0,1971.8,1967.7,2.0]
[1617795374583,32.0,1971.8,1967.7,2.0]
[1617795375184,80.1881,1971.1,1968.4,2.90695]
[1617795375398,32.0,1971.0,1968.4,2.90695]
[1617795375595,32.0,1971.0,1967.7,2.0]
[1617795376288,2.0,1971.0,1967.7,2.0]
[1617795377187,3.0228,1971.0,1968.3,2.90695]
[1617795377387,30.0,1970.9,1965.7,2.0]
[1617795377687,32.0,1970.9,1965.7,2.0]
[1617795378088,32.0,1970.9,1965.7,3.0054]
[1617795378290,14.1523,1970.8,1965.7,2.0]
[1617795378494,30.0,1970.7,1965.7,2.0]
[1617795378691,34.6256,1970.7,1965.7,2.0]
[1617795379192,34.6256,1970.7,1968.4,2.90695]
[1617795380414,2.6256,1970.7,1968.4,2.90695]
[1617795380610,14.1523,1970.8,1968.4,2.90695]
[1617795381397,14.1523,1970.8,1969.5,2.90695]
[1617795381597,14.1523,1970.8,1968.3,2.0467]
[1617795382508,16.7291,1970.8,1968.3,2.0467]
[1617795382714,16.7291,1970.8,1967.1,2.8721]
[1617795383218,16.7291,1970.8,1968.8,2.90695]
[1617795383707,14.1523,1970.8,1968.8,5.92445]
[1617795385204,2.90695,1969.8,1969.7,2.90695]
[1617795385411,2.90695,1969.8,1969.7,4.95635]
[1617795385905,14.1523,1970.8,1969.7,4.95635]
[1617795386506,82.655,1971.7,1969.7,4.95635]
[1617795387205,2.90695,1971.1,1970.9,2.90695]
[1617795389405,2.90695,1971.1,1968.8,3.0175]
[1617795389705,2.90695,1971.1,1968.7,2.0]
[1617795389905,5.90865,1971.1,1968.7,2.0]
[1617795390806,5.90865,1971.1,1967.7,2.0]
[1617795391206,3.0017,1971.1,1969.5,2.90695]
[1617795392007,3.0017,1971.1,1969.5,3.92905]
[1617795392207,2.784,1971.6,1969.5,3.92905]
[1617795392707,2.784,1971.6,1967.8,2.0]
[1617795393208,2.784,1971.6,1969.4,2.90695]
[1617795393610,0.02,1971.3,1965.2,2.2595]
[1617795393916,85.0999,1970.5,1965.3,69.8802]
[1617795394117,30.0,1970.4,1965.3,69.8802]
[1617795394508,13.2731,1970.3,1965.3,69.8802]
[1617795394708,26.6339,1970.3,1965.8,2.0]
[1617795394909,30.0,1970.2,1965.8,2.0]
[1617795395209,26.6339,1970.3,1968.6,2.90695]
[1617795395610,26.6339,1970.3,1966.9,2.6513]
[1617795396209,26.6339,1970.3,1967.0,2.0]
[1617795396410,13.3608,1970.3,1967.0,2.0]
[1617795397411,13.3608,1970.3,1966.1,2.0728]
[1617795397712,16.037,1970.3,1966.2,2.0]
[1617795399115,13.3608,1970.3,1966.2,2.0]
[1617795399413,13.3608,1970.3,1969.2,2.90695]
[1617795401317,13.3608,1970.3,1967.6,2.0]
[1617795401318,13.3608,1970.3,1969.4,2.90695]
[1617795403119,13.3608,1970.3,1967.6,2.0]
[1617795403318,16.2902,1970.3,1969.1,2.90695]
[1617795403518,79.5076,1970.1,1966.6,2.0]
[1617795403919,30.0,1970.0,1966.6,2.0]
[1617795404520,79.5076,1970.1,1966.6,2.0]
[1617795404821,110.5286,1970.1,1966.6,2.0]
[1617795405328,110.5286,1970.1,1968.5,2.90695]
[1617795405627,79.5076,1970.1,1968.5,2.90695]
[1617795407325,79.5076,1970.1,1967.8,2.0]
[1617795409331,79.5076,1970.1,1968.7,2.90695]
[1617795409532,79.5076,1970.1,1967.8,2.0]
[1617795409730,109.5076,1970.1,1967.8,2.0]
[1617795410230,109.5076,1970.1,1967.9,2.0]
[1617795410529,109.5076,1970.1,1966.6,2.8695]
[1617795410730,109.5076,1970.1,1966.7,2.0]
[1617795410932,111.5076,1970.1,1966.7,2.0]
[1617795411430,111.5076,1970.1,1967.8,2.90695]
[1617795411632,109.5076,1970.1,1967.8,2.90695]
[1617795412032,30.0,1969.9,1967.8,2.90695]
[1617795412232,30.0,1969.7,1967.8,2.90695]
[1617795412538,30.0,1969.5,1967.8,2.90695]
[1617795412732,30.0,1969.3,1967.8,2.90695]
[1617795412933,30.0,1969.1,1966.1,2.0]
[1617795413133,30.0,1968.9,1966.1,2.0]
[1617795413334,30.0,1968.9,1967.8,2.90695]
[1617795413533,2.0,1969.0,1967.8,2.90695]
[1617795413732,2.1898,1969.1,1967.8,2.90695]
[1617795414132,0.02,1969.6,1967.8,4.90695]
[1617795414346,2.3361,1969.9,1967.8,2.90695]
[1617795414533,32.3361,1969.9,1967.9,2.0]
[1617795414732,30.0,1969.9,1967.9,2.0]
[1617795415332,30.0,1969.9,1968.3,2.90695]
[1617795415537,30.0,1969.8,1968.3,2.90695]
[1617795415773,13.3608,1970.3,1968.4,2.0]
[1617795415957,43.4909,1970.2,1968.4,3.0716]
[1617795416134,0.02,1970.0,1968.4,3.0716]
[1617795416433,43.4909,1970.2,1968.4,3.0716]
[1617795416840,84.3134,1969.9,1968.4,3.0716]
[1617795417055,30.0,1969.8,1968.3,2.90695]
[1617795417258,84.3134,1969.9,1968.3,2.90695]
[1617795417436,84.3134,1969.9,1968.6,2.90695]
[1617795417636,84.3134,1969.9,1968.3,2.0224]
[1617795417836,30.0,1969.8,1968.3,2.0224]
[1617795418639,30.0,1969.8,1967.2,2.0]
[1617795419439,32.0,1969.8,1967.6,2.90695]
[1617795419938,32.0,1969.8,1965.3,76.5164]
[1617795420942,32.0,1969.8,1965.4,2.0]
[1617795421142,32.0,1969.8,1964.9,2.0]
[1617795421443,30.0,1968.4,1966.9,2.90695]
[1617795421743,35.0776,1968.4,1964.9,2.0]
[1617795421943,35.0776,1968.4,1963.9,1.1]
[1617795422145,13.1822,1968.3,1963.9,1.1]
[1617795422345,32.0,1968.2,1963.9,1.1]
[1617795422544,32.0,1968.2,1963.4,2.0]
[1617795422545,32.0,1968.2,1963.8,1.0302]
[1617795422746,78.024,1966.8,1965.0,2.0]
[1617795422944,30.0,1966.7,1965.0,2.0]
[1617795423345,2.90695,1965.1,1965.0,2.0]
[1617795423545,2.9939,1965.1,1965.0,2.0]
[1617795424449,2.2415,1965.1,1965.0,2.0]
[1617795425347,5.14845,1965.1,1965.0,4.90695]
[1617795425947,2.4986,1965.9,1965.0,4.90695]
[1617795426148,30.0,1966.7,1965.0,4.90695]
[1617795426450,1.0142,1971.8,1965.0,4.90695]
[1617795426656,2.55879059,1973.4,1965.0,4.90695]
[1617795426856,2.56025675,1973.5,1965.0,4.90695]
[1617795427050,30.0,1966.7,1965.0,4.90695]
[1617795427250,30.0,1966.7,1965.0,2.0]
[1617795427482,2.90695,1965.1,1965.0,0.4278]
[1617795427673,4.96235,1965.1,1964.5,2.90695]
[1617795427860,4.96235,1965.1,1963.1,2.0]
[1617795429450,2.0554,1965.1,1963.1,2.0]
[1617795429653,2.0554,1965.1,1961.6,3.1]
[1617795430251,32.0554,1965.1,1961.6,2.0]
[1617795430551,95.3191,1964.9,1961.6,2.0]
[1617795431152,95.3191,1964.9,1960.2,13.8797]
[1617795431355,95.3191,1964.9,1962.8,2.90695]
[1617795432855,95.3191,1964.9,1960.3,2.0]
[1617795433455,95.3191,1964.9,1962.2,2.90695]
[1617795435058,95.3191,1964.9,1962.2,4.95035]
[1617795435457,0.02,1965.0,1963.6,2.90695]
[1617795435658,12.8866,1965.5,1963.6,5.77775]
[1617795436058,70.0413,1966.1,1963.6,5.77775]
[1617795436530,0.02,1964.9,1963.6,5.77775]
[1617795436687,70.0413,1966.1,1963.6,5.77775]
[1617795437360,70.0413,1966.1,1963.7,2.0]
[1617795437617,1.0041,1966.9,1965.8,2.90695]
[1617795437803,1.0041,1966.9,1965.8,2.342]
[1617795438194,71.07660613,1967.4,1965.8,2.342]
[1617795438598,2.0,1967.3,1965.8,2.342]
[1617795438763,101.07660613,1967.4,1965.8,2.342]
[1617795438764,71.07660613,1967.4,1965.8,2.342]
[1617795439798,69.5695,1967.4,1965.8,2.342]
[1617795440061,14.2073,1967.9,1965.8,2.342]
[1617795441473,14.2073,1967.9,1966.1,2.90695]
[1617795441962,13.1822,1968.3,1966.1,2.90695]
[1617795442864,13.1822,1968.3,1966.1,4.90695]
[1617795443064,13.1822,1968.3,1966.1,3.92915]
[1617795443541,13.1822,1968.3,1967.5,2.90695]
[1617795443666,13.1822,1968.3,1967.5,2.273]
[1617795444466,13.1822,1968.3,1967.5,2.253]
[1617795444666,84.3175,1969.9,1967.5,2.253]
[1617795444867,84.3175,1969.9,1967.5,3.2767]
[1617795445565,84.3175,1969.9,1967.5,2.253]
[1617795447768,2.90695,1967.9,1967.7,2.90695]
[1617795447971,2.90695,1967.9,1967.5,2.253]
[1617795448367,2.90695,1967.9,1966.7,2.0]
[1617795448368,5e-05,1967.9,1966.7,2.0]
[1617795448671,5e-05,1967.9,1966.0,68.3033]
[1617795448881,13.5948,1969.8,1966.1,2.0]
[1617795449771,13.5948,1969.8,1968.2,2.90695]
[1617795449972,13.5948,1969.8,1968.2,5.66745]
[1617795451670,1.012,1970.6,1968.2,5.66745]
[1617795451990,80.1724,1971.6,1969.2,2.90695]
[1617795452179,30.0,1971.5,1969.2,5.44445]
[1617795452784,80.1724,1971.6,1969.2,5.44445]
[1617795453072,78.1724,1971.6,1969.2,5.44445]
[1617795453672,13.7909,1971.7,1969.2,5.44445]
[1617795453872,12.7815,1971.7,1969.6,2.90695]
[1617795454082,12.7815,1971.7,1969.6,5.99525]
[1617795455078,12.7815,1971.7,1969.6,7.01935]
[1617795455776,2.90695,1970.4,1970.3,2.90695]
[1617795455975,2.90695,1970.4,1970.3,2.5164]
[1617795456676,1.58875,1970.4,1970.3,2.5164]
[1617795457076,1.58875,1970.4,1968.2,2.7605]
[1617795457276,1.58875,1970.4,1967.2,83.1487]
[1617795457578,1.58875,1970.4,1967.2,84.1548]
[1617795457820,2.4925,1970.5,1968.9,2.90695]
[1617795458378,2.0,1970.4,1968.9,2.90695]
[1617795458577,2.0,1970.4,1967.2,83.1487]
[1617795458903,32.0,1970.4,1967.2,83.1487]
[1617795459680,30.0,1970.4,1967.2,83.1487]
[1617795459883,2.90695,1968.4,1968.2,2.90695]
[1617795462312,12.8712,1970.3,1968.2,2.90695]
[1617795462512,12.8712,1970.3,1968.2,5.71135]
[1617795463699,30.0,1972.6,1968.2,5.71135]
[1617795463907,2.90695,1970.2,1969.9,2.90695]
[1617795464098,2.90695,1970.2,1969.9,5.86525]
[1617795464297,2.90695,1970.2,1969.9,2.9583]
[1617795465095,2.90695,1970.2,1969.9,3.96]
[1617795465297,2.90695,1970.2,1969.9,2.9583]
[1617795465896,2.0,1970.4,1970.1,2.90695]
[1617795466314,66.2553,1972.4,1970.1,2.90695]
[1617795467999,66.2553,1972.4,1969.9,2.9583]
[1617795468000,2.0,1972.3,1970.6,2.90695]
[1617795468200,66.2553,1972.4,1970.6,2.90695]
[1617795468405,66.2553,1972.4,1970.6,5.89145]
[1617795469500,66.2553,1972.4,1970.6,2.9845]
[1617795469800,66.2553,1972.4,1970.5,2.7351]
[1617795470000,2.90695,1971.4,1970.5,2.7351]
[1617795472002,2.90695,1970.9,1970.8,2.90695]
[1617795473105,66.2553,1972.4,1970.8,2.90695]
[1617795473308,14.0805,1972.5,1970.8,2.90695]
[1617795474046,5.098,1973.9,1971.5,2.90695]
[1617795474305,12.7838,1973.8,1971.5,5.10995]
[1617795475106,32.0,1973.7,1971.5,5.10995]
[1617795475308,32.0,1973.7,1971.5,2.203]
[1617795475712,2.0,1973.7,1971.5,2.203]
[1617795475907,2.90695,1972.1,1972.0,2.90695]
[1617795476260,1.0195,1972.5,1972.0,4.77895]
[1617795476854,61.7233,1973.3,1972.0,1.872]
[1617795477256,61.7233,1973.3,1970.9,2.563]
[1617795478011,2.90695,1972.1,1971.9,2.90695]
[1617795478212,2.90695,1972.1,1971.9,5.66955]
[1617795479211,1.0253,1973.0,1971.9,5.66955]
[1617795479411,61.7233,1973.3,1971.9,5.66955]
[1617795480112,61.7233,1973.3,1971.9,2.7626]
[1617795480411,61.7233,1973.3,1971.8,2.2712]
[1617795481313,61.7233,1973.3,1970.9,2.563]
[1617795481918,61.7233,1973.3,1971.8,2.90695]
[1617795482118,61.7233,1973.3,1971.8,6.00145]
[1617795483022,61.7233,1973.3,1971.8,3.0945]
[1617795483219,61.7233,1973.3,1970.9,2.563]
[1617795483423,61.7233,1973.3,1970.6,2.0]
[1617795484021,61.7233,1973.3,1971.8,2.90695]
[1617795485121,12.7838,1973.8,1971.8,4.90695]
[1617795485321,70.4133,1974.9,1971.8,2.90695]
[1617795485928,2.90695,1972.7,1972.3,2.90695]
[1617795486123,70.4133,1974.9,1972.3,4.77515]
[1617795486656,72.4133,1974.9,1972.3,4.77515]
[1617795487725,30.0,1974.8,1972.3,4.77515]
[1617795487924,30.0,1974.8,1973.0,2.90695]
[1617795488124,30.0,1974.8,1973.0,5.38305]
[1617795488473,72.4133,1974.9,1973.0,5.38305]
[1617795489526,70.4133,1974.9,1973.0,6.38185]
[1617795489771,0.02,1975.0,1973.0,6.38185]
[1617795490000,1.0016,1975.9,1974.0,2.90695]
[1617795490178,13.5021,1976.2,1974.0,5.29305]
[1617795490953,18.0582,1976.3,1974.0,5.29305]
[1617795491183,12.9602,1976.3,1974.0,5.29305]
[1617795492227,12.9602,1976.3,1974.9,2.90695]
[1617795492430,12.9602,1976.3,1974.9,5.13775]
[1617795492666,0.9988,1976.5,1974.9,5.13775]
[1617795492667,2.0,1975.0,1974.9,5.13775]
[1617795492860,3.0104,1975.0,1974.9,5.13775]
[1617795493044,1.9,1975.0,1974.9,5.13775]
[1617795493231,0.02,1976.4,1974.9,5.13775]
[1617795493431,0.02,1976.4,1974.9,6.14075]
[1617795493737,0.02,1976.4,1974.9,5.13775]
[1617795494330,2.90695,1975.0,1974.9,2.2308]
[1617795494529,0.9988,1977.1,1974.9,2.2308]
[1617795494829,2.0,1976.9,1974.9,3.2579]
[1617795495233,2.0,1976.9,1974.9,1.0271]
[1617795495431,2.0,1976.9,1974.0,2.3661]
[1617795495634,30.0,1976.8,1973.6,1.0169]
[1617795495882,30.0,1976.6,1973.6,1.0169]
[1617795496048,30.0,1976.6,1972.3,1.8682]
[1617795496049,30.0,1976.4,1972.3,1.8682]
[1617795496233,30.0,1976.4,1971.6,66.2454]
[1617795496234,30.0,1976.2,1974.2,2.90695]
[1617795496434,30.0,1976.2,1971.7,2.0]
[1617795497035,2.0,1976.1,1971.7,2.0]
[1617795497236,32.0,1976.1,1971.7,2.0]
[1617795498065,32.0,1976.1,1971.6,66.2454]
[1617795498239,32.0,1976.1,1973.0,2.90695]
[1617795498442,13.2472,1976.0,1973.0,2.90695]
[1617795498641,30.0,1975.8,1973.0,2.90695]
[1617795498841,30.0,1975.6,1973.0,2.90695]
[1617795499043,2.0,1975.5,1973.0,2.90695]
[1617795499598,32.0,1975.5,1973.0,2.90695]
[1617795499793,32.0,1975.5,1971.6,66.2454]
[1617795500001,33.0161,1975.5,1971.6,66.2454]
[1617795500241,71.0108,1975.1,1971.0,2.0]
[1617795500442,30.0,1975.0,1971.0,2.0]
[1617795500643,74.5977,1975.1,1971.0,2.0]
[1617795500846,88.5643,1975.1,1971.0,2.0]
[1617795501150,17.5535,1975.1,1971.0,2.0]
[1617795501560,16.5536,1975.1,1971.1,2.0]
[1617795501757,48.5536,1975.1,1970.9,0.9995]
[1617795502341,48.5536,1975.1,1970.8,2.0]
[1617795502342,16.5536,1975.1,1973.0,2.90695]
[1617795502547,13.9666,1975.1,1973.0,5.17845]
[1617795502944,13.9666,1975.1,1973.1,2.0]
[1617795503642,0.02,1975.3,1973.1,2.0]
[1617795503892,77.1275,1976.7,1973.1,2.0]
[1617795506249,77.1275,1976.7,1976.3,2.90695]
[1617795506451,77.1275,1976.7,1976.3,2.4871]
[1617795507070,0.02,1976.9,1976.3,2.4871]
[1617795508250,2.90695,1976.6,1976.5,2.90695]
[1617795509153,2.79215,1976.6,1976.5,2.90695]
[1617795509754,0.02,1976.9,1976.5,2.90695]
[1617795510155,43.996,1979.2,1976.5,2.90695]
[1617795510467,2.90695,1977.0,1976.5,2.90695]
[1617795512116,2.90695,1977.0,1974.1,2.0]
[1617795512259,2.4316,1977.9,1976.4,2.90695]
[1617795512460,30.0,1977.8,1974.1,2.0]
[1617795512661,0.02,1977.2,1974.1,2.0]
[1617795513360,0.02,1977.2,1974.0,68.8023]
[1617795513559,0.02,1977.2,1974.1,2.0]
[1617795513881,0.02,1977.2,1974.1,2.0777]
[1617795514360,0.02,1977.2,1976.9,2.90695]
[1617795514962,0.02,1977.2,1975.4,2.4404]
[1617795515460,34.1327,1978.1,1975.4,2.4404]
[1617795515660,2.1327,1978.1,1975.4,2.4404]
[1617795516363,2.90695,1977.0,1976.8,2.90695]
[1617795519082,5.02745,1977.0,1976.8,2.90695]
[1617795519565,2.1205,1977.0,1976.8,2.90695]
[1617795520165,0.02,1977.4,1976.8,2.90695]
[1617795520366,2.90695,1977.0,1975.5,2.9491]
[1617795520565,2.90695,1977.0,1974.2,13.2024]
[1617795520877,2.90695,1977.0,1974.3,2.0]
[1617795521794,2.90695,1977.0,1974.3,5.4074]
[1617795521968,13.9945,1977.4,1974.3,5.4074]
[1617795522166,13.9945,1977.4,1974.3,4.3847]
[1617795522366,13.9945,1977.4,1977.1,2.90695]
[1617795522766,13.9945,1977.4,1975.6,59.4019]
[1617795522970,16.369,1977.4,1975.6,59.4019]
[1617795523570,16.369,1977.4,1975.0,2.0]
[1617795523769,46.369,1977.4,1975.0,2.0]
[1617795524372,46.369,1977.4,1976.2,2.90695]
[1617795524573,2.0,1977.3,1974.1,2.0]
[1617795524772,30.0,1977.2,1974.1,2.0]
[1617795524972,30.0,1977.2,1974.1,3.0132]
[1617795525172,30.0,1977.2,1974.1,2.0]
[1617795525577,2.0,1977.1,1974.1,2.0]
[1617795525772,30.0,1977.0,1973.8,2.0]
[1617795525974,2.0,1976.9,1973.8,2.0]
[1617795526177,30.0,1976.8,1973.8,2.0]
[1617795526373,2.90695,1974.6,1974.4,2.90695]
[1617795526577,5.89195,1974.6,1974.4,2.90695]
[1617795527035,2.985,1974.6,1974.4,2.90695]
[1617795528277,2.541,1975.3,1974.4,2.90695]
[1617795528479,2.541,1975.3,1975.0,2.90695]
[1617795529281,2.495,1975.3,1975.0,2.90695]
[1617795529480,2.7231,1977.0,1975.0,2.90695]
[1617795529879,2.7231,1977.0,1975.1,2.0]
[1617795530179,2.0,1978.2,1975.1,4.1922]
[1617795530580,2.90695,1976.5,1975.1,4.1922]
[1617795530979,30.0,1977.6,1975.1,2.1922]
[1617795531184,13.9945,1977.4,1975.1,4.1922]
[1617795531392,0.02,1976.7,1975.1,4.1922]
[1617795531880,0.02,1976.7,1975.1,2.1922]
[1617795532082,0.02,1976.7,1975.2,2.0]
[1617795532508,2.90695,1976.4,1976.2,2.90695]
[1617795533382,0.02,1976.7,1976.2,2.90695]
[1617795533585,0.02,1976.7,1976.2,4.94225]
[1617795533783,13.9945,1977.4,1976.2,4.94225]
[1617795534191,2.0,1978.6,1976.2,4.94225]
[1617795534192,30.0,1978.1,1976.2,4.94225]
[1617795534583,30.0,1978.1,1977.1,2.90695]
[1617795534886,32.0,1978.0,1975.8,2.8869]
[1617795535087,34.354,1978.0,1975.8,2.8869]
[1617795535484,34.354,1978.0,1975.5,67.3452]
[1617795536289,0.02,1977.8,1975.5,67.3452]
[1617795536488,2.90695,1975.6,1975.5,67.3452]
[1617795536689,2.90695,1975.6,1975.3,2.90695]